bitfinex/quotes_SOLUSD_20220208
["timestamp","ask_amount","ask_price","bid_price","bid_amount"]
[1644289284796,0.25,116.88,116.86,44.38500953]
[1644289284991,12.8407,116.89,116.86,44.38500953]
[1644289285391,42.803,116.92,116.87,6.03019994]
[1644289286094,42.803,116.92,116.88,41.69707095]
[1644289286693,12.8392,116.91,116.88,41.69707095]
[1644289287096,12.8392,116.91,116.89,6.03019994]
[1644289287497,13.80013926,116.93,116.89,6.03019994]
[1644289288001,12.8379,116.92,116.89,6.03019994]
[1644289288401,0.0342,116.91,116.89,6.03019994]
[1644289288599,0.25,116.92,116.89,6.03019994]
[1644289288798,13.80013926,116.93,116.89,6.03019994]
[1644289289102,14.05013926,116.93,116.89,6.03019994]
[1644289289503,12.8383,116.92,116.89,6.03019994]
[1644289290405,12.8383,116.92,116.9,38.09881094]
[1644289290605,12.8383,116.92,116.89,6.03019994]
[1644289291205,0.0342,116.91,116.89,6.03019994]
[1644289291406,12.8734,116.91,116.89,6.03019994]
[1644289291607,12.8734,116.91,116.89,36.06704778]
[1644289291909,12.8734,116.91,116.9,4.0087123]
[1644289292107,12.8392,116.91,116.9,4.0087123]
[1644289292408,55.0854,116.94,116.9,4.0087123]
[1644289292607,12.8374,116.92,116.9,4.0087123]
[1644289293410,13.0874,116.92,116.9,1.01071233]
[1644289293609,13.0874,116.92,116.88,3.1217473]
[1644289293908,12.29,116.91,116.88,3.1217473]
[1644289294108,60.81112903,116.91,116.88,3.1217473]
[1644289294307,14.96457896,116.9,116.88,4.73e-05]
[1644289294508,12.29,116.89,116.88,4.73e-05]
[1644289294708,14.41097896,116.89,116.88,4.73e-05]
[1644289295512,27.25757896,116.89,116.88,4.73e-05]
[1644289295913,27.29177896,116.89,116.88,4.73e-05]
[1644289296510,25.1708,116.89,116.88,4.73e-05]
[1644289297111,25.4208,116.89,116.88,4.73e-05]
[1644289298011,12.8808,116.89,116.88,4.73e-05]
[1644289298611,0.0342,116.89,116.88,4.73e-05]
[1644289299710,12.8747,116.89,116.88,4.73e-05]
[1644289300321,12.8747,116.89,116.88,2.99804727]
[1644289300322,12.8405,116.89,116.88,2.99804727]
[1644289300514,12.8405,116.89,116.88,4.73e-05]
[1644289300919,14.96147896,116.89,116.88,4.73e-05]
[1644289301115,14.99567896,116.89,116.88,4.73e-05]
[1644289301315,12.8747,116.89,116.88,4.73e-05]
[1644289302816,12.8747,116.89,116.83,36.51913412]
[1644289304315,13.1247,116.89,116.83,36.51913412]
[1644289306345,12.8747,116.89,116.83,36.51913412]
[1644289307746,13.1247,116.89,116.83,36.51913412]
[1644289309349,12.8747,116.89,116.83,36.51913412]
[1644289309850,0.0342,116.89,116.83,36.51913412]
[1644289310050,12.8398,116.91,116.84,23.5844]
[1644289310248,12.8398,116.91,116.84,23.6084]
[1644289310449,12.29,116.95,116.85,42.15523549]
[1644289310650,100.12969263,116.97,116.87,57.34140767]
[1644289310849,100.12969263,116.97,116.89,40.48749623]
[1644289311050,12.8352,116.95,116.91,45.16661316]
[1644289312851,13.0852,116.95,116.91,45.16661316]
[1644289318058,12.8352,116.95,116.91,45.16661316]
[1644289320170,13.0852,116.95,116.9,23.5844]
[1644289320357,13.0852,116.95,116.85,24.1452]
[1644289320557,15.20617896,116.95,116.86,23.0665]
[1644289320759,12.29,116.94,116.86,23.0665]
[1644289320957,12.8391,116.92,116.86,23.0665]
[1644289321159,12.8391,116.92,116.87,45.13118297]
[1644289325265,13.0891,116.92,116.87,45.13118297]
[1644289325664,0.25,116.92,116.87,45.13118297]
[1644289325865,1.18625072,116.95,116.87,45.13118297]
[1644289326066,0.25,116.94,116.88,24.1099]
[1644289326264,13.72625072,116.96,116.88,24.1099]
[1644289326664,13.72625072,116.96,116.89,46.45077265]
[1644289327265,26.56075072,116.96,116.89,46.45077265]
[1644289328868,14.27075072,116.96,116.89,46.45077265]
[1644289329270,13.0845,116.96,116.89,46.45077265]
[1644289331473,0.25,116.96,116.89,59.28307265]
[1644289331676,0.25,116.96,116.9,23.141]
[1644289331878,1.18625072,116.97,116.9,23.141]
[1644289332279,1.18625072,116.97,116.91,38.69456012]
[1644289332479,12.8338,116.96,116.91,38.69456012]
[1644289333277,1.18625072,116.97,116.91,38.69456012]
[1644289333677,1.18625072,116.98,116.91,38.69456012]
[1644289333877,12.8324,116.97,116.91,38.69456012]
[1644289334478,14.01865072,116.97,116.91,38.69456012]
[1644289334979,12.8353,116.95,116.9,23.141]
[1644289335581,13.0853,116.95,116.9,23.141]
[1644289336880,13.0853,116.95,116.91,43.49240297]
[1644289337880,1.18625072,116.96,116.91,43.49240297]
[1644289338082,14.01935072,116.96,116.91,43.49240297]
[1644289339585,14.26935072,116.96,116.91,43.49240297]
[1644289339806,1.18625072,116.95,116.91,43.49240297]
[1644289341703,14.02005072,116.95,116.91,43.49240297]
[1644289344109,14.27005072,116.95,116.91,43.49240297]
[1644289344308,14.27005072,116.95,116.9,23.141]
[1644289344510,1.18625072,116.94,116.85,36.983]
[1644289344708,12.8381,116.92,116.86,24.655]
[1644289345309,12.8381,116.92,116.87,34.48768029]
[1644289350215,13.0881,116.92,116.87,34.48768029]
[1644289364432,14.27435072,116.92,116.87,34.48768029]
[1644289367438,14.02435072,116.92,116.87,34.48768029]
[1644289367736,42.7936,116.94,116.87,34.48768029]
[1644289367737,1.18625072,116.94,116.87,34.73768029]
[1644289367937,66.3702,116.96,116.88,22.7789]
[1644289367938,1.18625072,116.95,116.88,22.7789]
[1644289368338,1.18625072,116.95,116.89,37.67049059]
[1644289368641,14.02085072,116.94,116.89,37.67049059]
[1644289369238,14.27085072,116.94,116.89,37.67049059]
[1644289369640,1.18625072,116.93,116.89,37.67049059]
[1644289369844,14.02255072,116.93,116.89,37.67049059]
[1644289370640,14.02255072,116.93,116.88,22.7789]
[1644289371040,1.18625072,116.92,116.88,22.7789]
[1644289371259,12.8381,116.91,116.88,22.7789]
[1644289371643,0.0342,116.9,116.88,64.5271453]
[1644289371845,1.18625072,116.92,116.89,6.03019994]
[1644289372043,1.18625072,116.92,116.89,3.03219997]
[1644289372243,12.8381,116.9,116.83,24.111]
[1644289372448,12.8381,116.9,116.84,0.024]
[1644289372644,14.02435072,116.9,116.84,0.024]
[1644289373049,14.02435072,116.9,116.84,35.80684669]
[1644289374473,12.8424,116.88,116.84,35.80684669]
[1644289374672,12.8424,116.88,116.84,35.78284669]
[1644289374874,13.0924,116.88,116.84,35.78284669]
[1644289381792,14.02495072,116.9,116.84,35.78284669]
[1644289381983,12.8387,116.9,116.84,36.05684669]
[1644289382183,1.18625072,116.92,116.84,36.05684669]
[1644289382384,1.18625072,116.92,116.85,24.337]
[1644289382585,1.18625072,116.92,116.85,32.577]
[1644289383588,12.8377,116.91,116.85,45.4144]
[1644289385192,12.8377,116.91,116.85,37.1744]
[1644289385393,14.02265072,116.92,116.85,37.1744]
[1644289386294,14.27265072,116.92,116.85,37.1744]
[1644289387794,13.0864,116.92,116.85,36.9244]
[1644289387996,13.12544844,116.92,116.85,36.9244]
[1644289388494,13.12544844,116.92,116.85,12.8614]
[1644289388495,1.18625072,116.91,116.85,12.8614]
[1644289388695,12.8385,116.91,116.85,12.8614]
[1644289389898,12.8385,116.91,116.85,36.5817]
[1644289390599,14.02475072,116.91,116.85,36.5817]
[1644289391500,12.8385,116.91,116.85,36.5817]
[1644289392220,13.0885,116.91,116.85,36.5817]
[1644289394099,14.27475072,116.91,116.85,36.5817]
[1644289396905,14.27475072,116.91,116.85,23.7443]
[1644289400630,1.18625072,116.9,116.85,0.024]
[1644289400928,14.02505072,116.9,116.85,0.024]
[1644289401127,14.02505072,116.9,116.85,12.8624]
[1644289401529,1.18625072,116.91,116.85,37.1736]
[1644289402532,14.02395072,116.91,116.85,37.1736]
[1644289404330,1.18625072,116.9,116.85,24.3352]
[1644289404531,12.8397,116.89,116.85,24.3352]
[1644289404731,13.0897,116.89,116.85,24.3352]
[1644289405331,12.8397,116.89,116.85,24.3352]
[1644289406833,13.0897,116.89,116.85,24.3352]
[1644289407232,12.8397,116.89,116.85,24.3352]
[1644289407434,1.18625072,116.9,116.85,37.1734]
[1644289407633,1.22529916,116.93,116.85,43.4234]
[1644289407834,0.03904844,116.92,116.86,1.90713566]
[1644289408038,0.03904844,116.92,116.86,14.19713566]
[1644289408236,0.03904844,116.92,116.87,45.48721449]
[1644289408435,0.03904844,116.93,116.88,12.29]
[1644289408637,0.03904844,116.95,116.89,73.60868577]
[1644289408836,1.22529916,116.96,116.89,60.77558577]
[1644289409036,1.18625072,116.95,116.89,60.77558577]
[1644289409435,1.18625072,116.95,116.89,61.02558577]
[1644289409634,1.18625072,116.95,116.89,73.85918577]
[1644289410035,1.22529916,116.96,116.89,73.85918577]
[1644289410236,1.18625072,116.96,116.89,73.85918577]
[1644289411439,1.22529916,116.97,116.89,73.85918577]
[1644289411635,1.18625072,116.97,116.89,73.85918577]
[1644289411837,0.03904844,116.96,116.89,73.85918577]
[1644289412440,0.03904844,116.98,116.89,75.76632143]
[1644289412739,0.03904844,116.96,116.9,12.29]
[1644289412940,1.18625072,117.01,116.91,12.8249]
[1644289413141,1.18625072,117.01,116.92,37.0869]
[1644289413341,1.18625072,117.01,116.92,77.19638336]
[1644289413539,1.18625072,117.01,116.92,83.19638336]
[1644289413739,1.18625072,117.02,116.92,83.19638336]
[1644289413940,1.18625072,117.02,116.93,22.9546]
[1644289414139,1.18625072,117.02,116.94,51.22475103]
[1644289414341,34.50501578,117.04,116.96,56.12514701]
[1644289414342,1.18625072,117.03,116.96,56.12514701]
[1644289414542,38.30952436,117.02,116.96,56.12514701]
[1644289414839,41.61675404,117.02,116.96,43.30024701]
[1644289415640,52.57367508,117.02,116.96,43.30024701]
[1644289416039,14.26415072,117.02,116.96,43.30024701]
[1644289416239,13.0779,117.02,116.96,43.30024701]
[1644289418348,0.25,117.02,116.96,43.30024701]
[1644289418745,1.18625072,117.03,116.96,43.55024701]
[1644289418945,25.32125072,117.05,116.96,43.55024701]
[1644289419447,72.86298352,117.05,116.98,48.27041733]
[1644289419650,48.72798352,117.05,116.98,48.27041733]
[1644289420548,61.55318352,117.05,116.98,48.27041733]
[1644289420749,14.26145072,117.05,116.98,48.27041733]
[1644289421248,13.0752,117.05,116.98,48.27041733]
[1644289422050,0.25,117.05,116.98,48.52041733]
[1644289422250,1.18625072,117.07,116.99,24.4438]
[1644289422450,0.25,117.06,116.99,24.4438]
[1644289422653,1.18625072,117.07,116.99,24.4438]
[1644289422850,1.18625072,117.07,117.0,48.30772953]
[1644289423652,12.8234,117.06,117.0,48.30772953]
[1644289424750,52.7925832,117.06,117.0,48.30772953]
[1644289425752,53.0425832,117.06,117.0,48.30772953]
[1644289427356,55.16356216,117.06,116.97,23.3969]
[1644289427754,53.0425832,117.06,116.97,23.3969]
[1644289428155,53.0425832,117.06,116.98,23.6278]
[1644289428358,53.0425832,117.06,116.98,57.97652657]
[1644289428759,0.03870626,117.05,116.98,57.97652657]
[1644289428957,12.86290626,117.05,116.98,57.97652657]
[1644289429959,40.68012587,117.04,116.98,57.97652657]
[1644289430459,0.03870626,117.05,116.98,57.97652657]
[1644289430661,0.03870626,117.06,116.98,66.12422463]
[1644289430860,0.03870626,117.05,116.98,60.12422463]
[1644289431062,0.03870626,117.08,116.98,60.12422463]
[1644289431369,0.03870626,117.05,116.98,60.12422463]
[1644289431562,0.03870626,117.07,116.98,60.12422463]
[1644289431762,0.03870626,117.05,116.98,60.12422463]
[1644289431964,0.03870626,117.07,116.98,60.12422463]
[1644289432163,39.03523985,117.08,116.98,66.12422463]
[1644289432363,39.03523985,117.08,116.98,60.12422463]
[1644289432564,1.18625072,117.1,116.99,12.29]
[1644289432765,1.18625072,117.11,117.0,24.4788]
[1644289432965,1.18625072,117.12,117.01,23.2518]
[1644289433165,1.18625072,117.12,117.02,24.4788]
[1644289433483,45.81955529,117.12,117.03,40.85067345]
[1644289433781,44.63330457,117.12,117.03,41.10067345]
[1644289434185,44.63330457,117.12,117.03,53.91637345]
[1644289434383,44.63330457,117.12,117.03,53.41637345]
[1644289436890,46.06955529,117.12,117.03,53.41637345]
[1644289437188,44.88330457,117.12,117.03,53.41637345]
[1644289437588,0.03872497,117.11,117.03,53.41637345]
[1644289438390,0.03872497,117.11,117.04,37.5987]
[1644289438790,0.03872497,117.11,117.04,37.8487]
[1644289438990,35.53972724,117.11,117.05,48.35120375]
[1644289439193,35.57845221,117.11,117.05,48.60120375]
[1644289439490,35.82845221,117.11,117.04,37.5987]
[1644289439689,35.82845221,117.11,117.04,24.784]
[1644289439890,37.01470293,117.11,117.04,24.784]
[1644289440192,35.82845221,117.11,117.04,24.784]
[1644289440393,37.01470293,117.11,117.04,24.784]
[1644289440592,37.01470293,117.11,117.04,71.1616146]
[1644289440791,1.22497569,117.11,117.04,83.9771146]
[1644289440997,0.03872497,117.11,117.05,1.89769806]
[1644289441192,1.22497569,117.14,117.05,1.89769806]
[1644289441393,0.03872497,117.11,117.05,1.89769806]
[1644289441593,0.03872497,117.13,117.05,2.14769806]
[1644289441797,0.03872497,117.11,117.06,42.77643784]
[1644289441992,0.03872497,117.12,117.06,66.24273784]
[1644289442192,0.03872497,117.12,117.06,66.49273784]
[1644289444296,0.03872497,117.12,117.06,79.30603784]
[1644289448096,34.7804304,117.12,117.06,79.30603784]
[1644289448396,0.03872497,117.12,117.06,79.05603784]
[1644289448999,0.03872497,117.12,117.08,12.8079]
[1644289449198,1.18625072,117.18,117.09,36.7108]
[1644289449401,1.18625072,117.18,117.1,44.99459549]
[1644289449599,0.03880939,117.17,117.1,65.18229355]
[1644289449799,0.03880939,117.17,117.1,65.43229355]
[1644289449998,1.18625072,117.19,117.1,65.43229355]
[1644289450201,0.03880939,117.18,117.11,24.3451]
[1644289450499,0.03880939,117.18,117.12,40.40151716]
[1644289450702,1.22506011,117.2,117.12,40.65151716]
[1644289450999,0.03880939,117.18,117.12,40.65151716]
[1644289451404,0.03880939,117.18,117.13,51.87559806]
[1644289451601,1.18625072,117.21,117.14,23.9511]
[1644289451800,0.03880939,117.2,117.14,24.2011]
[1644289452004,0.03880939,117.21,117.14,24.2011]
[1644289452200,40.58240834,117.21,117.14,59.18510479]
[1644289452402,56.69733802,117.21,117.14,59.18510479]
[1644289452701,56.98614741,117.21,117.14,59.18510479]
[1644289453707,56.98614741,117.21,117.13,24.883]
[1644289453901,1.18625072,117.2,117.13,24.883]
[1644289454101,12.84790939,117.19,117.13,24.883]
[1644289454704,12.84790939,117.19,117.14,45.39402707]
[1644289455205,0.03880939,117.19,117.14,45.39402707]
[1644289455404,54.61496845,117.21,117.11,12.8073]
[1644289455604,54.61496845,117.21,117.01,12.963]
[1644289455605,0.38179477,117.14,117.08,11.79]
[1644289455804,12.29,117.15,117.08,11.79]
[1644289456004,9.25681403,117.13,117.08,11.79]
[1644289456207,21.54681403,117.13,117.08,11.79]
[1644289456404,39.33280893,117.12,117.08,11.79]
[1644289456604,12.8177,117.11,117.08,11.79]
[1644289456805,0.0342,117.1,117.08,11.79]
[1644289458204,53.70700639,117.1,117.08,11.79]
[1644289458706,12.8518,117.1,117.08,11.79]
[1644289459706,13.1018,117.1,117.08,11.79]
[1644289465913,0.0342,117.1,117.08,11.79]
[1644289466113,0.03880939,117.13,117.09,6.03019994]
[1644289466313,1.18625072,117.14,117.09,6.28019994]
[1644289466516,0.03880939,117.15,117.09,29.09789994]
[1644289466713,0.03880939,117.14,117.09,28.84789994]
[1644289466915,12.813,117.14,117.09,6.03019994]
[1644289467413,16.12022968,117.14,117.09,3.03219997]
[1644289467615,1.18625072,117.13,117.08,11.79]
[1644289467815,38.5410884,117.13,117.08,11.79]
[1644289468016,12.8173,117.12,117.08,11.79]
[1644289468214,42.83317764,117.11,117.08,11.79]
[1644289469618,43.08317764,117.11,117.08,11.79]
[1644289469817,0.0342,117.1,117.08,11.79]
[1644289470016,12.8515,117.1,117.08,11.79]
[1644289470919,12.3515,117.1,117.08,11.79]
[1644289471517,50.72830466,117.1,117.08,11.79]
[1644289472222,50.97830466,117.1,117.08,11.79]
[1644289472820,12.6015,117.1,117.05,48.63284793]
[1644289476742,12.3515,117.1,117.05,48.63284793]
[1644289476942,0.03902633,117.11,117.05,48.88284793]
[1644289477143,0.03902633,117.12,117.05,48.88284793]
[1644289477344,0.03902633,117.11,117.06,23.069]
[1644289477544,0.03902633,117.13,117.06,23.069]
[1644289477748,0.03902633,117.13,117.06,23.319]
[1644289477944,40.55132085,117.13,117.07,36.806491]
[1644289478345,53.36582085,117.13,117.06,23.069]
[1644289478547,56.67305053,117.13,117.06,23.069]
[1644289478746,56.6340242,117.13,117.03,24.6062]
[1644289478950,1.22527705,117.12,117.03,24.6062]
[1644289479147,0.03902633,117.11,117.03,24.6062]
[1644289479346,40.90099785,117.11,117.04,44.40772405]
[1644289479646,40.86197152,117.11,117.04,44.40772405]
[1644289480448,41.11197152,117.11,117.04,44.40772405]
[1644289480647,12.8194,117.1,117.04,44.40772405]
[1644289480846,12.85842633,117.1,117.04,44.40772405]
[1644289482952,14.04467705,117.1,117.04,44.40772405]
[1644289484450,14.29467705,117.1,117.04,44.40772405]
[1644289484852,1.18625072,117.09,117.04,44.40772405]
[1644289485455,14.00505072,117.09,117.04,44.40772405]
[1644289488759,14.25505072,117.09,117.04,44.40772405]
[1644289490162,1.43625072,117.09,117.04,44.40772405]
[1644289490760,1.18625072,117.1,117.04,44.65772405]
[1644289491160,1.22527705,117.1,117.04,44.40772405]
[1644289491560,1.22527705,117.1,117.04,57.22422405]
[1644289492260,1.18625072,117.1,117.04,57.47422405]
[1644289493560,1.22527705,117.11,117.04,57.47422405]
[1644289495563,14.04147705,117.11,117.04,57.47422405]
[1644289496264,14.29147705,117.11,117.04,57.47422405]
[1644289496664,14.25245072,117.11,117.04,57.47422405]
[1644289503272,46.00535185,117.11,117.04,57.47422405]
[1644289503873,14.00315072,117.1,117.04,57.47422405]
[1644289504072,14.04217705,117.1,117.04,57.47422405]
[1644289504972,1.22527705,117.1,117.04,57.47422405]
[1644289505173,0.03902633,117.1,117.04,57.47422405]
[1644289505374,1.18625072,117.11,117.05,24.9268]
[1644289505574,1.22527705,117.12,117.08,5.4997225]
[1644289505774,1.18625072,117.12,117.08,5.4997225]
[1644289505975,1.18625072,117.12,117.09,41.98745087]
[1644289506577,14.00085072,117.12,117.09,41.98745087]
[1644289507676,14.00085072,117.12,117.08,5.4997225]
[1644289507876,14.25085072,117.12,117.08,5.4997225]
[1644289509480,56.0542675,117.12,117.08,5.4997225]
[1644289510077,1.18625072,117.11,117.08,5.4997225]
[1644289510279,14.00245072,117.11,117.08,5.4997225]
[1644289510478,38.38459854,117.1,117.08,5.4997225]
[1644289510678,14.00245072,117.11,117.08,5.4997225]
[1644289511378,12.8162,117.11,117.08,5.4997225]
[1644289513579,12.8162,117.11,117.08,45.25569234]
[1644289514179,12.8162,117.11,117.08,5.4997225]
[1644289514679,12.8162,117.11,117.09,3.03219997]
[1644289515179,49.52400864,117.11,117.07,24.9268]
[1644289515378,12.8162,117.11,117.07,24.9268]
[1644289515578,14.00245072,117.11,117.07,24.9268]
[1644289519985,14.00245072,117.11,117.05,22.8521]
[1644289520287,1.18625072,117.09,117.02,24.2737]
[1644289520484,12.8203,117.07,117.02,24.2737]
[1644289520885,12.8203,117.07,117.02,58.93847749]
[1644289521486,12.8203,117.07,117.02,59.18847749]
[1644289522292,12.8203,117.07,117.02,58.93847749]
[1644289522689,12.8203,117.07,117.02,24.2737]
[1644289522890,14.94127896,117.07,117.02,24.2737]
[1644289523288,12.8203,117.07,117.02,24.2737]
[1644289523908,35.01040682,117.06,117.02,24.2737]
[1644289524407,12.8221,117.05,117.02,24.2737]
[1644289526510,12.8221,117.05,117.0,23.4669]
[1644289528012,12.8221,117.05,117.0,36.2884]
[1644289528214,12.8221,117.05,117.01,46.28530971]
[1644289528613,1.18625072,117.09,117.01,46.28530971]
[1644289528911,1.18625072,117.1,117.01,46.28530971]
[1644289529111,1.18625072,117.1,117.01,59.35590971]
[1644289529514,12.818,117.09,117.03,34.6782266]
[1644289529713,1.18625072,117.11,117.03,34.9282266]
[1644289529915,1.18625072,117.12,117.04,24.2574]
[1644289530114,0.96431995,117.12,117.06,12.815]
[1644289530316,0.0390429,117.12,117.06,13.065]
[1644289530516,0.0390429,117.14,117.07,40.71882556]
[1644289530718,0.0390429,117.14,117.07,40.96882556]
[1644289530916,12.8136,117.13,117.07,40.96882556]
[1644289531119,12.8526429,117.13,117.07,40.96882556]
[1644289532119,57.64927017,117.13,117.07,40.96882556]
[1644289532319,57.64927017,117.13,117.07,53.78242556]
[1644289532719,57.89927017,117.13,117.07,53.78242556]
[1644289532920,13.1026429,117.13,117.07,53.78242556]
[1644289534023,40.71019652,117.12,117.07,53.78242556]
[1644289534222,53.52529652,117.12,117.07,40.71882556]
[1644289535823,53.52529652,117.12,117.06,23.4225]
[1644289536029,53.52529652,117.12,117.06,23.6725]
[1644289536226,55.64627548,117.12,117.04,22.9599]
[1644289536722,55.89627548,117.12,117.02,23.9972]
[1644289536924,55.89627548,117.12,117.05,46.13128]
[1644289538024,55.89627548,117.12,117.0,12.8212]
[1644289538224,12.29,117.11,117.0,37.3509]
[1644289538424,12.8221,117.08,117.0,37.3509]
[1644289538928,12.8221,117.08,117.01,38.50216273]
[1644289539726,12.8221,117.08,117.01,51.32246273]
[1644289541229,12.8221,117.08,117.01,51.57246273]
[1644289544136,13.0721,117.08,117.01,51.57246273]
[1644289544836,12.8221,117.08,117.01,51.57246273]
[1644289545037,23.6927,117.12,117.01,69.60046273]
[1644289545238,42.7608429,117.13,117.05,12.8152]
[1644289545840,85.26431053,117.13,117.06,37.93486771]
[1644289546441,85.22526763,117.13,117.06,37.93486771]
[1644289546640,12.8152,117.11,117.06,37.93486771]
[1644289547244,13.0652,117.11,117.06,37.93486771]
[1644289548440,50.74974769,117.11,117.06,37.93486771]
[1644289548740,13.0652,117.11,117.06,37.93486771]
[1644289549142,0.25,117.11,117.06,37.93486771]
[1644289549342,22.2554143,117.12,117.06,37.93486771]
[1644289549642,12.8146,117.12,117.06,37.93486771]
[1644289550544,12.8146,117.12,117.06,50.74976771]
[1644289552143,13.0646,117.12,117.06,50.74976771]
[1644289552742,52.12965912,117.12,117.06,37.93486771]
[1644289553143,2.12097896,117.11,117.06,37.93486771]
[1644289553344,12.8175,117.1,117.06,37.93486771]
[1644289556547,12.8175,117.1,117.06,43.93486771]
[1644289556947,13.0675,117.1,117.06,43.93486771]
[1644289557548,0.25,117.1,117.06,43.93486771]
[1644289557748,12.8156,117.11,117.06,43.93486771]
[1644289557949,13.0656,117.11,117.06,43.93486771]
[1644289558749,12.8145,117.12,117.06,56.99986771]
[1644289558948,0.0390429,117.14,117.06,56.99986771]
[1644289559750,0.0390429,117.14,117.08,37.48506442]
[1644289559949,12.8136,117.13,117.08,37.48506442]
[1644289563954,57.57206647,117.13,117.08,37.48506442]
[1644289564154,57.82206647,117.13,117.08,37.48506442]
[1644289564657,57.82206647,117.13,117.08,43.48506442]
[1644289564855,12.8136,117.13,117.08,43.48506442]
[1644289565459,12.8129,117.14,117.08,43.48506442]
[1644289565657,12.8519429,117.14,117.08,43.48506442]
[1644289566261,13.1019429,117.14,117.08,43.48506442]
[1644289566659,13.1019429,117.14,117.08,56.29796442]
[1644289567261,13.1019429,117.14,117.08,50.29796442]
[1644289567860,47.00503575,117.14,117.08,50.29796442]
[1644289568060,47.00503575,117.14,117.08,37.48506442]
[1644289568560,13.1019429,117.14,117.08,37.48506442]
[1644289569361,12.8519429,117.14,117.08,37.48506442]
[1644289569563,0.0390429,117.14,117.08,56.54766442]
[1644289569771,0.0390429,117.17,117.09,1.89265888]
[1644289569963,0.0390429,117.14,117.09,1.89265888]
[1644289570162,0.0390429,117.16,117.09,29.3984]
[1644289570562,0.0390429,117.19,117.09,29.3984]
[1644289570764,0.0390429,117.16,117.1,40.03656395]
[1644289571066,0.0390429,117.18,117.1,40.03656395]
[1644289571279,56.65921588,117.16,117.1,40.28656395]
[1644289571468,56.65921588,117.16,117.1,40.03656395]
[1644289572667,58.78019484,117.16,117.09,23.1484]
[1644289573072,59.03019484,117.16,117.09,23.1484]
[1644289575671,59.03019484,117.16,117.07,38.71633557]
[1644289575872,12.8159,117.13,117.07,38.71633557]
[1644289576172,43.80897298,117.12,117.07,38.71633557]
[1644289576574,44.05897298,117.12,117.07,38.71633557]
[1644289576772,0.25,117.12,117.07,38.71633557]
[1644289577174,42.7584429,117.14,117.07,38.71633557]
[1644289577374,43.0084429,117.14,117.07,38.71633557]
[1644289577572,12.8157,117.11,117.07,38.71633557]
[1644289578473,12.8157,117.11,117.05,37.6299]
[1644289578673,12.8157,117.11,117.05,43.8799]
[1644289579472,12.8157,117.11,117.06,37.63137703]
[1644289579874,12.8157,117.11,117.06,37.88137703]
[1644289584780,12.8157,117.11,117.05,30.8149]
[1644289585084,12.8157,117.11,117.03,22.6186]
[1644289585283,14.93667896,117.11,117.01,24.6627]
[1644289585481,14.93667896,117.11,117.01,24.6387]
[1644289585683,14.93667896,117.11,117.01,30.6627]
[1644289585882,14.93667896,117.11,117.02,38.70088957]
[1644289588125,12.8157,117.11,117.02,38.70088957]
[1644289588420,13.0657,117.11,117.02,38.95088957]
[1644289588621,13.0657,117.11,117.03,0.024]
[1644289589723,12.8157,117.11,117.03,0.024]
[1644289591128,13.0657,117.11,117.03,0.024]
[1644289595236,6.24050685,117.11,117.03,0.024]
[1644289596337,6.24050685,117.11,117.03,24.445]
[1644289596539,6.24050685,117.11,117.04,0.024]
[1644289598760,5.99050685,117.11,117.04,0.024]
[1644289600061,6.24050685,117.11,117.04,0.024]
[1644289603564,5.99050685,117.11,117.04,0.024]
[1644289605570,5.99050685,117.11,117.04,12.8399]
[1644289605767,5.99050685,117.11,117.04,13.0899]
[1644289606166,5.99050685,117.11,117.04,0.274]
[1644289606766,5.99050685,117.11,117.04,0.024]
[1644289608675,5.99050685,117.11,117.04,12.84]
[1644289608876,5.99050685,117.11,117.04,13.09]
[1644289609371,46.02280139,117.11,117.04,13.09]
[1644289609871,5.99050685,117.11,117.04,13.09]
[1644289613372,5.99050685,117.11,117.04,0.274]
[1644289613672,5.79050685,117.11,117.04,0.024]
[1644289613874,7.91148581,117.11,117.04,0.024]
[1644289615578,5.79050685,117.11,117.04,0.024]
[1644289616179,6.04050685,117.11,117.04,0.024]
[1644289617283,8.16148581,117.11,117.04,0.024]
[1644289623293,8.16148581,117.11,117.03,0.024]
[1644289623793,7.91148581,117.11,117.03,0.024]
[1644289625093,8.16148581,117.11,117.03,0.024]
[1644289625894,7.91148581,117.11,117.03,0.024]
[1644289626695,7.95052871,117.11,117.03,0.024]
[1644289627196,8.20052871,117.11,117.03,0.024]
[1644289630400,8.20052871,117.11,117.03,23.0759]
[1644289630600,8.20052871,117.11,117.04,0.024]
[1644289631304,7.95052871,117.11,117.04,0.024]
[1644289633122,8.20052871,117.11,117.04,0.024]